fUST/lending_fUST_20250912
["ID","MTS","AMOUNT","RATE_DAILY","PERIOD"]
[384983237,1757640652442,-480.0,0.00014931,2]
[384983238,1757640652451,-602.59,0.00014931,2]
[384983239,1757640652461,-480.0,0.00014931,2]
[384983240,1757640652470,-480.0,0.00014931,2]
[384983241,1757640652479,-480.0,0.00014931,2]
[384983243,1757640652489,-1046.42,0.00014931,2]
[384983245,1757640652499,-480.0,0.00014931,2]
[384983247,1757640652508,-480.0,0.00014931,2]
[384983249,1757640652517,-480.0,0.00014931,2]
[384983251,1757640652526,-480.0,0.00014931,2]
[384983253,1757640652535,-5847.48,0.00014931,2]
[384983255,1757640652544,-480.0,0.00014931,2]
[384983257,1757640652553,-480.0,0.00014931,2]
[384983259,1757640652563,-480.0,0.00014931,2]
[384983261,1757640652572,-480.0,0.00014931,2]
[384983263,1757640652581,-475.61778359,0.00014933,2]
[384983265,1757640652590,-480.0,0.00014933,2]
[384983267,1757640652600,-480.0,0.00014933,2]
[384983269,1757640652609,-480.0,0.00014933,2]
[384983271,1757640652618,-480.0,0.00014933,2]
[384983273,1757640652626,-480.0,0.00014933,2]
[384983275,1757640652635,-480.0,0.00014933,2]
[384983277,1757640652644,-480.0,0.00014933,2]
[384983279,1757640652653,-480.0,0.00014933,2]
[384983281,1757640652662,-159.24302595,0.00014933,2]
[384983283,1757640652671,-480.0,0.00014933,2]
[384983285,1757640652679,-480.0,0.00014933,2]
[384983287,1757640652689,-255.0909443,0.00014933,2]
[384983289,1757640652697,-178.62442388,0.00014938,2]
[384983291,1757640652706,-186.0,0.00014938,2]
[384983293,1757640652715,-157.0,0.00014938,2]
[384983295,1757640652723,-186.0,0.00014938,2]
[384983297,1757640652732,-160.0,0.00015,2]
[384983299,1757640652741,-191.084339,0.00015068,2]
[384983301,1757640652750,-500.0,0.00015068,2]
[384983303,1757640652759,-420.0,0.00015133,2]
[384983305,1757640652768,-500.0,0.00015171,2]
[384983307,1757640652777,-480.0,0.00015181,2]
[384983309,1757640652786,-480.0,0.00015181,2]
[384983311,1757640652795,-500.0,0.00015184,2]
[384983313,1757640652804,-500.0,0.00015186,2]
[384983315,1757640652813,-1245.0,0.00015191,2]
[384983317,1757640652822,-1000.0,0.00015195,2]
[384983319,1757640652831,-607.08,0.00015203,2]
[384983321,1757640652840,-1394.34,0.00015203,2]
[384983323,1757640652850,-480.0,0.00015203,2]
[384983325,1757640652859,-1063.56,0.00015203,2]
[384983326,1757640652869,-480.0,0.00015203,2]
[384983328,1757640652879,-812.03,0.00015203,2]
[384983330,1757640652889,-535.28,0.00015203,2]
[384983332,1757640652898,-480.0,0.00015203,2]
[384983334,1757640652907,-480.0,0.00015203,2]
[384983336,1757640652917,-480.0,0.00015203,2]
[384983338,1757640652926,-480.0,0.00015203,2]
[384983340,1757640652934,-480.0,0.00015204,2]
[384983342,1757640652943,-480.0,0.00015204,2]
[384983344,1757640652952,-480.0,0.00015204,2]
[384983346,1757640652961,-177.66437,0.00015204,2]
[384983348,1757640652970,-177.66437,0.00015204,2]
[384983350,1757640652979,-177.66437,0.00015204,2]
[384983352,1757640652988,-177.66437,0.00015204,2]
[384983354,1757640652997,-151.0,0.00015204,2]
[384983356,1757640653006,-151.0,0.00015204,2]
[384983358,1757640653015,-480.0,0.00015204,2]
[384983360,1757640653024,-480.0,0.00015204,2]
[384983362,1757640653033,-480.0,0.00015204,2]
[384983364,1757640653041,-480.0,0.00015204,2]
[384983366,1757640653051,-513.30262906,0.00015204,2]
[384983368,1757640653060,-480.0,0.00015204,2]
[384983370,1757640653069,-480.0,0.00015204,2]
[384983372,1757640653078,-575.56,0.00015204,2]
[384983374,1757640653087,-377.46423015,0.00015204,2]
[384983376,1757640653095,-480.0,0.00015204,2]
[384983378,1757640653105,-480.0,0.00015204,2]
[384983380,1757640653114,-480.0,0.00015204,2]
[384983382,1757640653123,-344.29616747,0.00015204,2]
[384983384,1757640653132,-480.0,0.00015204,2]
[384983386,1757640653141,-480.0,0.00015204,2]
[384983388,1757640653150,-679.41,0.00015204,2]
[384983390,1757640653159,-480.0,0.00015204,2]
[384983392,1757640653168,-435.60538689,0.00015204,2]
[384983394,1757640653178,-151.0,0.00015204,2]
[384983396,1757640653187,-151.0,0.00015204,2]
[384983398,1757640653196,-2824.06,0.00015204,2]
[384983400,1757640653205,-163.969088,0.00015204,2]
[384983402,1757640653214,-480.0,0.00015205,2]
[384983404,1757640653224,-480.0,0.00015205,2]
[384983406,1757640653233,-480.0,0.00015205,2]
[384983408,1757640653243,-480.0,0.00015205,2]
[384983410,1757640653252,-480.0,0.00015205,2]
[384983412,1757640653261,-480.0,0.00015205,2]
[384983414,1757640653270,-480.0,0.00015205,2]
[384983416,1757640653279,-480.0,0.00015205,2]
[384983418,1757640653287,-948.1,0.00015205,2]
[384983420,1757640653296,-480.0,0.00015205,2]
[384983421,1757640653305,-480.0,0.00015205,2]
[384983423,1757640653314,-708.34,0.00015205,2]
[384983425,1757640653323,-480.0,0.00015205,2]
[384983427,1757640653332,-2652.79,0.00015205,2]
[384983429,1757640653341,-480.0,0.00015205,2]
[384983431,1757640653350,-881.72,0.00015205,2]
[384983433,1757640653359,-480.0,0.00015205,2]
[384983435,1757640653369,-602.59,0.00015205,2]
[384983437,1757640653378,-311.34,0.00015205,2]
[384983439,1757640653387,-1046.42,0.00015205,2]
[384983441,1757640653398,-480.0,0.00015205,2]
[384983443,1757640653408,-480.0,0.00015205,2]
[384983445,1757640653417,-151.0,0.00015205,2]
[384983447,1757640653426,-581.37,0.00015205,2]
[384983449,1757640653435,-151.0,0.00015205,2]
[384983459,1757640653520,-480.0,0.00015205,2]
[384983461,1757640653530,-5847.48,0.00015205,2]
[384983463,1757640653539,-480.0,0.00015205,2]
[384983465,1757640653548,-480.0,0.00015205,2]
[384983467,1757640653558,-480.0,0.00015205,2]
[384983469,1757640653567,-480.0,0.00015205,2]
[384983471,1757640653577,-151.0,0.00015206,2]
[384983473,1757640653586,-151.0,0.00015206,2]
[384983475,1757640653595,-151.0,0.00015206,2]
[384983477,1757640653604,-480.0,0.00015207,2]
[384983479,1757640653613,-480.0,0.00015207,2]
[384983481,1757640653623,-480.0,0.00015207,2]
[384983483,1757640653631,-480.0,0.00015207,2]
[384983484,1757640653640,-480.0,0.00015207,2]
[384983486,1757640653649,-480.0,0.00015207,2]
[384983488,1757640653658,-157.0,0.00015212,2]
[384983490,1757640653667,-500.0,0.00015215,2]
[384983492,1757640653676,-380.57833364,0.00015215,2]
[384983494,1757640653685,-151.0,0.00015215,2]
[384983496,1757640653695,-7273.2420775,0.00015284,2]
[384983498,1757640653704,-720.0,0.00015415,2]
[384983500,1757640653713,-480.0,0.00015455,2]
[384983502,1757640653722,-494.76878118,0.00015455,2]
[384983504,1757640653731,-607.08,0.00015477,2]
[384983506,1757640653740,-1394.34,0.00015477,2]
[384983508,1757640653748,-480.0,0.00015477,2]
[384983510,1757640653757,-299.267995,0.00015477,2]
[384983512,1757640653766,-1063.56,0.00015477,2]
[384983514,1757640653776,-299.267995,0.00015477,2]
[384983516,1757640653785,-299.267995,0.00015477,2]
[384983518,1757640653794,-299.267995,0.00015477,2]
[384983520,1757640653803,-812.03,0.00015477,2]
[384983522,1757640653812,-535.28,0.00015477,2]
[384983524,1757640653820,-324.649468,0.00015477,2]
[384983526,1757640653829,-324.649468,0.00015477,2]
[384983528,1757640653838,-324.649468,0.00015477,2]
[384983530,1757640653847,-324.649468,0.00015477,2]
[384983532,1757640653856,-480.0,0.00015477,2]
[384983534,1757640653865,-480.0,0.00015477,2]
[384983536,1757640653874,-480.0,0.00015477,2]
[384983538,1757640653883,-480.0,0.00015478,2]
[384983540,1757640653893,-480.0,0.00015478,2]
[384983542,1757640653901,-480.0,0.00015478,2]
[384983544,1757640653910,-480.0,0.00015478,2]
[384983546,1757640653918,-480.0,0.00015478,2]
[384983547,1757640653927,-480.0,0.00015478,2]
[384983550,1757640653937,-480.0,0.00015478,2]
[384983552,1757640653947,-260.91,0.00015478,2]
[384983554,1757640653956,-480.0,0.00015478,2]
[384983556,1757640653965,-480.0,0.00015478,2]
[384983558,1757640653975,-480.0,0.00015478,2]
[384983560,1757640653984,-480.0,0.00015478,2]
[384983562,1757640653993,-679.41,0.00015478,2]
[384983564,1757640654002,-480.0,0.00015478,2]
[384983566,1757640654011,-2824.06,0.00015478,2]
[384983568,1757640654021,-180.06857585,0.00015479,2]
[384983570,1757640654030,-480.0,0.00015479,2]
[384983572,1757640654039,-592.39707802,0.00015479,2]
[384983574,1757640654049,-480.0,0.00015479,2]
[384983576,1757640654058,-480.0,0.00015479,2]
[384983578,1757640654068,-480.0,0.00015479,2]
[384983580,1757640654078,-480.0,0.00015479,2]
[384983581,1757640654087,-948.1,0.00015479,2]
[384983583,1757640654096,-480.0,0.00015479,2]
[384983585,1757640654106,-480.0,0.00015479,2]
[384983587,1757640654115,-708.34,0.00015479,2]
[384983589,1757640654124,-480.0,0.00015479,2]
[384983591,1757640654134,-2652.79,0.00015479,2]
[384983593,1757640654143,-480.0,0.00015479,2]
[384983595,1757640654153,-881.72,0.00015479,2]
[384983597,1757640654162,-480.0,0.00015479,2]
[384983599,1757640654172,-602.59,0.00015479,2]
[384983601,1757640654181,-1046.42,0.00015479,2]
[384983603,1757640654190,-480.0,0.00015479,2]
[384983605,1757640654200,-480.0,0.00015479,2]
[384983607,1757640654209,-5847.48,0.00015479,2]
[384983609,1757640654219,-480.0,0.00015479,2]
[384983611,1757640654228,-480.0,0.00015479,2]
[384983613,1757640654237,-480.0,0.00015479,2]
[384983615,1757640654247,-151.0,0.0001548,2]
[384983617,1757640654256,-480.0,0.00015481,2]
[384983619,1757640654265,-480.0,0.00015481,2]
[384983621,1757640654275,-480.0,0.00015481,2]
[384983623,1757640654285,-480.0,0.00015481,2]
[384983625,1757640654294,-480.0,0.00015481,2]
[384983627,1757640654304,-157.0,0.00015486,2]
[384983629,1757640654313,-160.0,0.00015506,2]
[384983631,1757640654322,-480.0,0.00015729,2]
[384983633,1757640654332,-607.08,0.00015751,2]
[384983635,1757640654342,-1394.34,0.00015751,2]
[384983637,1757640654351,-480.0,0.00015751,2]
[384983639,1757640654360,-1063.56,0.00015751,2]
[384983641,1757640654370,-812.03,0.00015751,2]
[384983643,1757640654379,-535.28,0.00015751,2]
[384983645,1757640654388,-480.0,0.00015751,2]
[384983647,1757640654400,-480.0,0.00015751,2]
[384983649,1757640654410,-480.0,0.00015751,2]
[384983651,1757640654419,-480.0,0.00015752,2]
[384983653,1757640654428,-480.0,0.00015752,2]
[384983655,1757640654437,-480.0,0.00015752,2]
[384983657,1757640654447,-480.0,0.00015752,2]
[384983659,1757640654456,-480.0,0.00015752,2]
[384983661,1757640654465,-151.0,0.00015752,2]
[384983663,1757640654475,-240.800532,0.00015752,2]
[384983665,1757640654484,-480.0,0.00015752,2]
[384983667,1757640654494,-500.0,0.00015752,2]
[384983669,1757640654503,-500.0,0.00015752,2]
[384983670,1757640654512,-500.0,0.00015752,2]
[384983671,1757640654520,-500.0,0.00015752,2]
[384983672,1757640654529,-151.0,0.00015752,2]
[384983673,1757640654538,-151.0,0.00015752,2]
[384983674,1757640654546,-151.0,0.00015752,2]
[384983675,1757640654555,-480.0,0.00015752,2]
[384983676,1757640654564,-480.0,0.00015752,2]
[384983677,1757640654573,-480.0,0.00015752,2]
[384983678,1757640654582,-480.0,0.00015752,2]
[384983679,1757640654592,-679.41,0.00015752,2]
[384983680,1757640654602,-2824.06,0.00015752,2]
[384983681,1757640654611,-480.0,0.00015753,2]
[384983682,1757640654620,-480.0,0.00015753,2]
[384983683,1757640654629,-480.0,0.00015753,2]
[384983684,1757640654638,-480.0,0.00015753,2]
[384983685,1757640654647,-948.1,0.00015753,2]
[384983686,1757640654655,-480.0,0.00015753,2]
[384983687,1757640654664,-480.0,0.00015753,2]
[384983688,1757640654673,-708.34,0.00015753,2]
[384983689,1757640654682,-480.0,0.00015753,2]
[384983690,1757640654691,-2652.79,0.00015753,2]
[384983691,1757640654700,-480.0,0.00015753,2]
[384983692,1757640654709,-881.72,0.00015753,2]
[384983693,1757640654718,-480.0,0.00015753,2]
[384983694,1757640654726,-602.59,0.00015753,2]
[384983695,1757640654735,-1046.42,0.00015753,2]
[384983696,1757640654744,-480.0,0.00015753,2]
[384983697,1757640654753,-5847.48,0.00015753,2]
[384983698,1757640654763,-480.0,0.00015753,2]
[384983699,1757640654771,-497.074907,0.00015753,2]
[384983700,1757640654781,-480.0,0.00015753,2]
[384983701,1757640654790,-177.66437,0.00015754,2]
[384983702,1757640654799,-177.66437,0.00015754,2]
[384983703,1757640654808,-177.66437,0.00015754,2]
[384983704,1757640654816,-177.66437,0.00015754,2]
[384983706,1757640654825,-151.0,0.00015754,2]
[384983708,1757640654834,-480.0,0.00015755,2]
[384983710,1757640654843,-480.0,0.00015755,2]
[384983712,1757640654852,-480.0,0.00015755,2]
[384983714,1757640654861,-480.0,0.00015755,2]
[384983716,1757640654871,-480.0,0.00015755,2]
[384983718,1757640654880,-215.0,0.0001576,2]
[384983720,1757640654890,-480.0,0.00016003,2]
[384983722,1757640654899,-607.08,0.00016025,2]
[384983724,1757640654908,-1394.34,0.00016025,2]
[384983726,1757640654917,-480.0,0.00016025,2]
[384983728,1757640654927,-1063.56,0.00016025,2]
[384983730,1757640654936,-812.03,0.00016025,2]
[384983732,1757640654945,-535.28,0.00016025,2]
[384983734,1757640654954,-480.0,0.00016025,2]
[384983736,1757640654964,-151.0,0.00016025,2]
[384983738,1757640654973,-239.947756,0.00016025,2]
[384983740,1757640654982,-480.0,0.00016025,2]
[384983742,1757640654991,-480.0,0.00016025,2]
[384983744,1757640655000,-480.0,0.00016026,2]
[384983745,1757640655009,-480.0,0.00016026,2]
[384983747,1757640655018,-480.0,0.00016026,2]
[384983749,1757640655027,-480.0,0.00016026,2]
[384983751,1757640655036,-480.0,0.00016026,2]
[384983753,1757640655045,-480.0,0.00016026,2]
[384983763,1757640655126,-480.0,0.00016026,2]
[384983765,1757640655135,-480.0,0.00016026,2]
[384983767,1757640655144,-679.41,0.00016026,2]
[384983769,1757640655153,-2824.06,0.00016026,2]
[384983771,1757640655162,-306.82234861,0.00016027,2]
[384983773,1757640655171,-480.0,0.00016027,2]
[384983775,1757640655180,-250.44,0.00016027,2]
[384983777,1757640655189,-151.0,0.00016027,2]
[384983779,1757640655198,-151.0,0.00016027,2]
[384983781,1757640655206,-151.0,0.00016027,2]
[384983783,1757640655215,-480.0,0.00016027,2]
[384983785,1757640655225,-948.1,0.00016027,2]
[384983787,1757640655235,-480.0,0.00016027,2]
[384983789,1757640655244,-480.0,0.00016027,2]
[384983791,1757640655254,-708.34,0.00016027,2]
[384983793,1757640655263,-480.0,0.00016027,2]
[384983795,1757640655272,-2652.79,0.00016027,2]
[384983797,1757640655281,-480.0,0.00016027,2]
[384983799,1757640655290,-881.72,0.00016027,2]
[384983801,1757640655300,-480.0,0.00016027,2]
[384983803,1757640655309,-602.59,0.00016027,2]
[384983805,1757640655319,-1046.42,0.00016027,2]
[384983807,1757640655327,-480.0,0.00016027,2]
[384983808,1757640655337,-160.111274,0.00016027,2]
[384983810,1757640655346,-5847.48,0.00016027,2]
[384983812,1757640655355,-480.0,0.00016027,2]
[384983814,1757640655364,-480.0,0.00016027,2]
[384983816,1757640655373,-151.0,0.00016028,2]
[384983818,1757640655383,-480.0,0.00016029,2]
[384983820,1757640655392,-480.0,0.00016029,2]
[384983822,1757640655405,-480.0,0.00016029,2]
[384983824,1757640655414,-480.0,0.00016029,2]
[384983826,1757640655423,-260.0,0.00016054,2]
[384983828,1757640655433,-503.94144352,0.00016164,2]
[384983830,1757640655443,-2133.6738063,0.00016168,2]
[384983832,1757640655452,-151.0,0.000162,2]
[384983834,1757640655461,-480.0,0.00016277,2]
[384983836,1757640655470,-607.08,0.00016299,2]
[384983838,1757640655479,-1394.34,0.00016299,2]
[384983840,1757640655489,-480.0,0.00016299,2]
[384983842,1757640655499,-1063.56,0.00016299,2]
[384983844,1757640655509,-812.03,0.00016299,2]
[384983846,1757640655518,-535.28,0.00016299,2]
[384983848,1757640655528,-410.0,0.00016299,2]
[384983850,1757640655537,-480.0,0.00016299,2]
[384983852,1757640655546,-480.0,0.00016299,2]
[384983854,1757640655555,-480.0,0.000163,2]
[384983856,1757640655564,-480.0,0.000163,2]
[384983858,1757640655573,-480.0,0.000163,2]
[384983860,1757640655584,-480.0,0.000163,2]
[384983862,1757640655594,-480.0,0.000163,2]
[384983864,1757640655604,-480.0,0.000163,2]
[384983866,1757640655613,-299.267995,0.000163,2]
[384983868,1757640655624,-299.267995,0.000163,2]
[384983870,1757640655634,-299.267995,0.000163,2]
[384983872,1757640655643,-289.18786817,0.000163,2]
[384983874,1757640655653,-299.26799656,0.000163,2]
[384983876,1757640655661,-324.649468,0.000163,2]
[384983878,1757640655671,-324.649468,0.000163,2]
[384983880,1757640655679,-324.649468,0.000163,2]
[384983882,1757640655689,-324.64947,0.000163,2]
[384983884,1757640655698,-480.0,0.000163,2]
[384983886,1757640655707,-679.41,0.000163,2]
[384983888,1757640655716,-2824.06,0.000163,2]
[384983890,1757640655725,-480.0,0.00016301,2]
[384983891,1757640655735,-480.0,0.00016301,2]
[384983893,1757640655744,-948.1,0.00016301,2]
[384983895,1757640655754,-480.0,0.00016301,2]
[384983897,1757640655764,-480.0,0.00016301,2]
[384983899,1757640655773,-708.34,0.00016301,2]
[384983901,1757640655782,-480.0,0.00016301,2]
[384983903,1757640655791,-2652.79,0.00016301,2]
[384983905,1757640655800,-480.0,0.00016301,2]
[384983907,1757640655809,-881.72,0.00016301,2]
[384983909,1757640655818,-480.0,0.00016301,2]
[384983911,1757640655827,-602.59,0.00016301,2]
[384983913,1757640655836,-1046.42,0.00016301,2]
[384983915,1757640655846,-480.0,0.00016301,2]
[384983917,1757640655856,-5847.48,0.00016301,2]
[384983919,1757640655867,-480.0,0.00016301,2]
[384983921,1757640655877,-480.0,0.00016301,2]
[384983923,1757640655886,-480.0,0.00016303,2]
[384983925,1757640655896,-480.0,0.00016303,2]
[384983927,1757640655905,-480.0,0.00016303,2]
[384983929,1757640655914,-155.40395857,0.00016303,2]
[384983931,1757640655924,-151.0,0.00016303,2]
[384983933,1757640655932,-500.0,0.00016303,2]
[384983935,1757640655941,-500.0,0.00016303,2]
[384983937,1757640655950,-500.0,0.00016303,2]
[384983939,1757640655959,-500.0,0.00016303,2]
[384983941,1757640655969,-500.0,0.00016358,2]
[384983943,1757640655978,-176.96728416,0.00016358,2]
[384983945,1757640655987,-500.0,0.00016358,2]
[384983947,1757640655996,-271.206,0.0001638,2]
[384983949,1757640656005,-500.0,0.00016438,2]
[384983951,1757640656014,-500.0,0.00016438,2]
[384983953,1757640656023,-500.0,0.00016438,2]
[384983954,1757640656033,-500.0,0.00016438,2]
[384983956,1757640656042,-500.0,0.00016438,2]
[384983958,1757640656051,-500.0,0.00016438,2]
[384983960,1757640656060,-500.0,0.00016438,2]
[384983962,1757640656070,-500.0,0.00016438,2]
[384983964,1757640656079,-500.0,0.00016438,2]
[384983966,1757640656088,-500.0,0.00016438,2]
[384983968,1757640656097,-151.0,0.00016438,2]
[384983970,1757640656108,-152.518184,0.00016438,2]
[384983972,1757640656117,-3246.06717013,0.000165,2]
[384983974,1757640656127,-151.0,0.000165,2]
[384983976,1757640656135,-480.0,0.00016551,2]
[384983978,1757640656145,-607.08,0.00016573,2]
[384983980,1757640656154,-1394.34,0.00016573,2]
[384983982,1757640656163,-480.0,0.00016573,2]
[384983984,1757640656174,-1063.56,0.00016573,2]
[384983986,1757640656183,-812.03,0.00016573,2]
[384983988,1757640656193,-535.28,0.00016573,2]
[384983990,1757640656203,-480.0,0.00016573,2]
[384983992,1757640656212,-480.0,0.00016573,2]
[384983994,1757640656221,-480.0,0.00016574,2]
[384983996,1757640656231,-480.0,0.00016574,2]
[384983997,1757640656240,-297.89417168,0.00016574,2]
[384983999,1757640656251,-606.18298755,0.00016574,2]
[384984001,1757640656260,-480.0,0.00016574,2]
[384984003,1757640656270,-543.90922912,0.00016574,2]
[384984005,1757640656280,-151.0,0.00016574,2]
[384984007,1757640656290,-151.0,0.00016574,2]
[384984009,1757640656299,-204.618248,0.00016574,2]
[384984011,1757640656308,-480.0,0.00016574,2]
[384984013,1757640656317,-679.41,0.00016574,2]
[384984015,1757640656328,-2824.06,0.00016574,2]
[384984017,1757640656338,-480.0,0.00016575,2]
[384984019,1757640656347,-480.0,0.00016575,2]
[384984021,1757640656357,-948.1,0.00016575,2]
[384984023,1757640656366,-525.8190926,0.00016575,2]
[384984025,1757640656375,-480.0,0.00016575,2]
[384984027,1757640656385,-708.34,0.00016575,2]
[384984029,1757640656395,-539.86011723,0.00016575,2]
[384984031,1757640656408,-2652.79,0.00016575,2]
[384984033,1757640656417,-480.0,0.00016575,2]
[384984035,1757640656426,-881.72,0.00016575,2]
[384984037,1757640656435,-480.0,0.00016575,2]
[384984039,1757640656446,-602.59,0.00016575,2]
[384984040,1757640656455,-1046.42,0.00016575,2]
[384984042,1757640656464,-480.0,0.00016575,2]
[384984044,1757640656474,-5847.48,0.00016575,2]
[384984046,1757640656483,-480.0,0.00016575,2]
[384984048,1757640656493,-480.0,0.00016575,2]
[384984050,1757640656502,-500.0,0.00016577,2]
[384984052,1757640656511,-480.0,0.00016577,2]
[384984054,1757640656520,-480.0,0.00016577,2]
[384984056,1757640656529,-480.0,0.00016577,2]
[384984058,1757640656539,-587.0,0.00016582,2]
[384984060,1757640656548,-360.0,0.00016602,2]
[384984062,1757640656557,-476.0869781,0.00016694,2]
[384984064,1757640656567,-7273.2420775,0.00016757,2]
[384984073,1757640656646,-2486.9211504,0.00016777,2]
[384984075,1757640656656,-574.14672607,0.00016825,2]
[384984077,1757640656666,-607.08,0.00016847,2]
[384984079,1757640656674,-1394.34,0.00016847,2]
[384984081,1757640656683,-480.0,0.00016847,2]
[384984083,1757640656692,-1063.56,0.00016847,2]
[384984085,1757640656702,-812.03,0.00016847,2]
[384984087,1757640656711,-535.28,0.00016847,2]
[384984089,1757640656721,-291.22981606,0.00016847,2]
[384984091,1757640656732,-192.37675109,0.00016847,2]
[384984093,1757640656741,-480.0,0.00016848,2]
[384984095,1757640656750,-480.0,0.00016848,2]
[384984097,1757640656759,-177.66437,0.00016848,2]
[384984099,1757640656768,-177.66437,0.00016848,2]
[384984101,1757640656778,-177.66437,0.00016848,2]
[384984103,1757640656787,-177.664362,0.00016848,2]
[384984105,1757640656796,-151.0,0.00016848,2]
[384984107,1757640656806,-480.0,0.00016848,2]
[384984109,1757640656815,-480.0,0.00016848,2]
[384984111,1757640656824,-679.41,0.00016848,2]
[384984113,1757640656833,-2824.06,0.00016848,2]
[384984115,1757640656843,-476.85,0.00016849,2]
[384984117,1757640656852,-480.0,0.00016849,2]
[384984119,1757640656862,-948.1,0.00016849,2]
[384984121,1757640656872,-480.0,0.00016849,2]
[384984123,1757640656882,-708.34,0.00016849,2]
[384984125,1757640656892,-2652.79,0.00016849,2]
[384984127,1757640656901,-480.0,0.00016849,2]
[384984129,1757640656910,-881.72,0.00016849,2]
[384984131,1757640656919,-480.0,0.00016849,2]
[384984133,1757640656928,-602.59,0.00016849,2]
[384984135,1757640656937,-1046.42,0.00016849,2]
[384984137,1757640656946,-480.0,0.00016849,2]
[384984139,1757640656955,-5847.48,0.00016849,2]
[384984140,1757640656964,-617.05,0.00016849,2]
[384984142,1757640656974,-480.0,0.00016849,2]
[384984144,1757640656983,-382.12424406,0.00016851,2]
[384984146,1757640656992,-498.65710643,0.00016851,2]
[384984148,1757640657002,-480.0,0.00016851,2]
[384984150,1757640657011,-480.0,0.00016851,2]
[384984152,1757640657028,-1000.0,0.00016906,2]
[384984154,1757640657037,-1000.0,0.00016906,2]
[384984156,1757640657046,-152.40059948,0.00016923,2]
[384984158,1757640657055,-500.0,0.00016939,2]
[384984160,1757640657064,-236.47393207,0.00016939,2]
[384984162,1757640657074,-864.0,0.00016957,2]
[384984164,1757640657083,-168.0,0.00017016,2]
[384984166,1757640657092,-607.08,0.00017121,2]
[384984168,1757640657102,-1394.34,0.00017121,2]
[384984170,1757640657111,-480.0,0.00017121,2]
[384984172,1757640657120,-1063.56,0.00017121,2]
[384984174,1757640657130,-812.03,0.00017121,2]
[384984175,1757640657139,-535.28,0.00017121,2]
[384984176,1757640657148,-480.0,0.00017122,2]
[384984177,1757640657157,-480.0,0.00017122,2]
[384984178,1757640657166,-151.0,0.00017122,2]
[384984179,1757640657175,-480.0,0.00017122,2]
[384984180,1757640657184,-679.41,0.00017122,2]
[384984181,1757640657193,-2824.06,0.00017122,2]
[384984182,1757640657202,-480.0,0.00017123,2]
[384984183,1757640657210,-948.1,0.00017123,2]
[384984185,1757640657219,-708.34,0.00017123,2]
[384984187,1757640657228,-2652.79,0.00017123,2]
[384984189,1757640657237,-480.0,0.00017123,2]
[384984191,1757640657246,-881.72,0.00017123,2]
[384984193,1757640657255,-480.0,0.00017123,2]
[384984195,1757640657263,-602.59,0.00017123,2]
[384984197,1757640657273,-1046.42,0.00017123,2]
[384984199,1757640657282,-480.0,0.00017123,2]